Workbook

Sheet 여수시
A1: 여수시 자동차 등록 현황
I2: (단위 : 대)
A3: 구분 | C3: 합 계 | D3: 자 동 차 | I3: 이 륜 자동차
D4: 소 계 | E4: 승용차 | F4: 승합차 | G4: 화물차 | H4: 특수차
A5: 2024년1월말 | B5: 여수 | C5: =D5+I5 -> 155,770 | D5: 145,968 | E5: 115,088 | F5: 4,133 | G5: 25,468 | H5: 1,279 | I5: 9,802
B6: 전남 | C6: 1,363,799 | D6: =SUM(E6:H6) -> 1,252,600 | E6: 949,208 | F6: 36,648 | G6: 257,528 | H6: 9,216 | I6: 111,199
B7: 전국 | C7: 28,204,661 | D7: 25,992,740 | E7: 21,429,541 | F7: 692,913 | G7: 3,731,574 | H7: 138,712 | I7: 2,211,921
A8: 2024년2월말 | B8: 여수 | C8: =D8+I8 -> 156,045 | D8: =SUM(E8:H8) -> 146,270 | E8: 115,300 | F8: 4,131 | G8: 25,559 | H8: 1,280 | I8: 9,775
B9: 전남 | C9: 1,365,524 | D9: =SUM(E9:H9) -> 1,254,429 | E9: 950,705 | F9: 36,528 | G9: 257,943 | H9: 9,253 | I9: 111,095
B10: 전국 | C10: 28,232,721 | D10: 26,019,547 | E10: 21,454,338 | F10: 691,431 | G10: 3,734,526 | H10: 139,252 | I10: 2,213,174
A11: 2024년3월말 | B11: 여수 | C11: =D11+I11 -> 156,338 | D11: =SUM(E11:H11) -> 146,544 | E11: 115,520 | F11: 4,129 | G11: 25,613 | H11: 1,282 | I11: 9,794
B12: 전남 | C12: 1,367,692 | D12: =SUM(E12:H12) -> 1,256,563 | E12: 952,599 | F12: 36,396 | G12: 258,285 | H12: 9,283 | I12: 111,129
B13: 전국 | C13: 28,270,882 | D13: 26,054,366 | E13: 21,492,387 | F13: 687,930 | G13: 3,734,292 | H13: 139,757 | I13: 2,216,516
A14: 2024년4월말 | B14: 여수 | C14: =D14+I14 -> 156,413 | D14: =SUM(E14:H14) -> 146,626 | E14: 115,701 | F14: 4,102 | G14: 25,543 | H14: 1,280 | I14: 9,787
B15: 전남 | C15: 1,369,843 | D15: =SUM(E15:H15) -> 1,258,717 | E15: 955,259 | F15: 36,351 | G15: 257,838 | H15: 9,269 | I15: 111,126
B16: 전국 | C16: 28,291,778 | D16: 26,070,358 | E16: 21,519,092 | F16: 683,895 | G16: 3,727,197 | H16: 140,174 | I16: 2,221,420
A17: 2024년5월말 | B17: 여수 | C17: =D17+I17 -> 156,520 | D17: =SUM(E17:H17) -> 146,704 | E17: 115,870 | F17: 4,075 | G17: 25,478 | H17: 1,281 | I17: 9,816
B18: 전남 | C18: 1,371,973 | D18: =SUM(E18:H18) -> 1,260,786 | E18: 957,483 | F18: 36,280 | G18: 257,740 | H18: 9,283 | I18: 111,187
B19: 전국 | C19: 28,322,736 | D19: 26,096,410 | E19: 21,550,663 | F19: 680,694 | G19: 3,724,407 | H19: 140,646 | I19: 2,226,326
A20: 2024년6월말 | B20: 여수 | C20: 156,753 | D20: =SUM(E20:H20) -> 146,942 | E20: 116,105 | F20: 4,063 | G20: 25,496 | H20: 1,278 | I20: 9,811
B21: 전남 | C21: 1,373,522 | D21: =SUM(E21:H21) -> 1,262,308 | E21: 959,029 | F21: 36,193 | G21: 257,765 | H21: 9,321 | I21: 111,214
B22: 전국 | C22: 28,364,784 | D22: 26,134,475 | E22: 21,589,772 | F22: 678,774 | G22: 3,724,788 | H22: 141,141 | I22: 2,230,309
A23: 2024년7월말 | B23: 여수 | C23: 156,751 | D23: =SUM(E23:H23) -> 146,946 | E23: 116,120 | F23: 4,060 | G23: 25,490 | H23: 1,276 | I23: 9,805
B24: 전남 | C24: 1,375,718 | D24: =SUM(E24:H24) -> 1,264,534 | E24: 961,328 | F24: 36,067 | G24: 257,782 | H24: 9,357 | I24: 111,184
B25: 전국 | C25: 28,396,278 | D25: 26,163,162 | E25: 21,620,419 | F25: 676,348 | G25: 3,724,628 | H25: 141,767 | I25: 2,233,116
A26: 2024년8월말 | B26: 여수 | C26: 156,712 | D26: =SUM(E26:H26) -> 146,890 | E26: 116,055 | F26: 4,043 | G26: 25,510 | H26: 1,282 | I26: 9,822
B27: 전남 | C27: 1,377,112 | D27: =SUM(E27:H27) -> 1,265,805 | E27: 962,807 | F27: 35,835 | G27: 257,786 | H27: 9,377 | I27: 111,307
B28: 전국 | C28: 28,411,010 | D28: 26,172,064 | E28: 21,633,331 | F28: 674,007 | G28: 3,722,525 | H28: 142,201 | I28: 2,238,946
A29: 2024년9월말 | B29: 여수 | C29: 156,790 | D29: =SUM(E29:H29) -> 146,952 | E29: 116,135 | F29: 4,020 | G29: 25,522 | H29: 1,275 | I29: 9,838
B30: 전남 | C30: 1,380,989 | D30: =SUM(E30:H30) -> 1,269,660 | E30: 966,707 | F30: 35,747 | G30: 257,821 | H30: 9,385 | I30: 111,329
B31: 전국 | C31: 28,446,456 | D31: 26,202,541 | E31: 21,666,842 | F31: 671,974 | G31: 3,721,103 | H31: 142,622 | I31: 2,243,915
A32: 2024년10월말 | B32: 여수 | C32: 156,720 | D32: =SUM(E32:H32) -> 146,903 | E32: 116,169 | F32: 4,003 | G32: 25,458 | H32: 1,273 | I32: 9,817
B33: 전남 | C33: 1,384,099 | D33: =SUM(E33:H33) -> 1,272,882 | E33: 970,165 | F33: 35,551 | G33: 257,742 | H33: 9,424 | I33: 111,217
B34: 전국 | C34: 28,478,177 | D34: 26,232,569 | E34: 21,700,133 | F34: 669,712 | G34: 3,719,698 | H34: 143,026 | I34: 2,245,608
A35: 2024년11월말 | B35: 여수 | C35: =D35+I35 -> 156,699 | D35: =SUM(E35:H35) -> 146,890 | E35: 116,222 | F35: 3,982 | G35: 25,416 | H35: 1,270 | I35: 9,809
B36: 전남 | C36: 1,386,443 | D36: =SUM(E36:H36) -> 1,275,312 | E36: 972,725 | F36: 35,454 | G36: 257,696 | H36: 9,437 | I36: 111,131
B37: 전국 | C37: 28,518,511 | D37: 26,273,606 | E37: 21,744,354 | F37: 667,977 | G37: 3,717,807 | H37: 143,468 | I37: 2,244,905
